bitfinex/quotes_ETHUSD_20241122
["timestamp","ask_amount","ask_price","bid_price","bid_amount"]
[1732312056833,0.7841,3291.8,3291.1,0.04534201]
[1732312057038,0.7841,3291.8,3290.8,0.55]
[1732312057323,0.7841,3291.8,3291.2,0.04534201]
[1732312057496,0.7841,3291.8,3290.8,0.55]
[1732312057703,0.7841,3291.8,3291.3,0.04534201]
[1732312057896,0.9379,3291.8,3290.8,0.55]
[1732312058123,0.7841,3291.8,3291.4,0.04534201]
[1732312058288,0.7841,3291.8,3290.8,0.55]
[1732312058826,0.7841,3291.8,3291.0,0.55]
[1732312059190,0.7841,3291.8,3290.8,0.55]
[1732312059398,0.7841,3291.8,3291.1,0.04534201]
[1732312059607,0.7841,3291.8,3290.8,0.55]
[1732312059924,0.7941,3292.1,3291.2,0.04534201]
[1732312060142,0.7941,3292.1,3290.9,0.03038469]
[1732312060281,0.7941,3292.1,3291.3,0.04534201]
[1732312060481,0.7941,3292.1,3290.9,0.03038469]
[1732312060701,0.7941,3292.1,3291.4,0.04534201]
[1732312060996,0.7941,3292.1,3290.8,0.58038247]
[1732312061197,0.7941,3292.1,3290.8,0.55]
[1732312061425,0.9489,3292.1,3291.0,0.55]
[1732312061783,0.9489,3292.1,3290.8,0.55]
[1732312061982,0.9489,3292.1,3291.1,0.04534201]
[1732312062224,0.17028,3292.0,3290.8,0.55]
[1732312062427,0.17028,3292.0,3291.2,0.04534201]
[1732312062599,0.17028,3292.0,3290.8,0.55]
[1732312062800,0.17028,3292.0,3291.3,0.04534201]
[1732312063015,0.17028,3292.0,3290.8,0.55]
[1732312063341,0.17028,3292.0,3291.4,0.04534201]
[1732312063621,0.17028,3292.0,3291.0,0.55]
[1732312063802,0.17028,3292.0,3291.5,0.04567373]
[1732312064005,0.17028,3292.0,3291.0,0.03038244]
[1732312064224,0.17028,3292.0,3290.8,0.55]
[1732312064225,0.17028,3292.0,3291.6,0.04567373]
[1732312064515,0.17028,3292.0,3290.8,0.55]
[1732312064888,0.17028,3292.0,3290.7,0.7539]
[1732312064889,0.17028,3292.0,3291.0,0.55]
[1732312065300,0.17028,3292.0,3291.1,0.04563402]
[1732312067136,0.17028,3292.0,3290.8,0.55]
[1732312067337,0.17028,3292.0,3291.2,0.0455975]
[1732312067522,0.17028,3292.0,3290.8,0.55]
[1732312067727,0.17028,3292.0,3291.3,0.0455975]
[1732312067929,0.7648,3291.9,3290.8,0.55]
[1732312068126,0.7648,3291.9,3291.4,0.04560068]
[1732312068310,0.7648,3291.9,3290.0,1.54344972]
[1732312068643,0.7648,3291.7,3290.1,0.23480497]
[1732312068846,0.7648,3291.7,3290.1,0.04560068]
[1732312069528,0.7648,3291.7,3290.2,0.55]
[1732312069899,0.7648,3291.7,3290.4,0.55]
[1732312070646,0.7648,3291.7,3290.6,0.55]
[1732312070812,0.7648,3291.7,3290.6,1.3746]
[1732312071328,0.7648,3291.7,3290.8,0.55]
[1732312071721,0.7648,3291.7,3290.7,0.55]
[1732312071922,0.7648,3291.7,3290.9,0.04564991]
[1732312072126,0.7648,3291.7,3290.8,0.04562609]
[1732312072432,0.7648,3291.7,3290.9,0.04562609]
[1732312072863,0.7648,3291.7,3290.7,0.55]
[1732312073149,0.7648,3291.7,3291.0,0.04562609]
[1732312073333,0.7648,3291.7,3290.7,0.55]
[1732312073535,0.28218473,3291.6,3291.1,0.04562609]
[1732312073719,0.7648,3291.7,3290.7,0.55]
[1732312074134,0.7648,3291.7,3290.8,0.04562609]
[1732312074363,0.28275008,3291.6,3290.8,0.04562609]
[1732312074535,0.7648,3291.7,3290.9,0.55]
[1732312074731,0.28274852,3291.6,3290.9,0.55]
[1732312075263,0.28274852,3291.5,3291.0,0.04562609]
[1732312075436,0.28274852,3291.4,3291.0,0.04562609]
[1732312075635,0.28274852,3291.3,3291.0,0.04562609]
[1732312075853,0.7648,3291.7,3291.0,0.04562609]
[1732312076050,0.28316316,3291.6,3291.0,0.04562609]
[1732312076251,0.28316316,3291.5,3291.0,0.04562609]
[1732312076558,0.28316316,3291.4,3291.0,0.04562609]
[1732312076747,0.28316316,3291.3,3291.0,0.04562609]
[1732312076949,0.7648,3291.7,3290.6,0.8246]
[1732312076950,0.28331587,3291.2,3290.6,0.8246]
[1732312077125,0.28331587,3291.6,3290.7,0.59562609]
[1732312077321,0.28333567,3291.5,3290.7,0.59562609]
[1732312077642,0.28333567,3291.4,3290.7,0.59562609]
[1732312077858,0.28333567,3291.3,3290.7,0.59562609]
[1732312078170,0.28333567,3291.2,3290.7,0.59562609]
[1732312078526,0.7648,3291.7,3290.7,0.59562609]
[1732312078722,0.28337103,3291.6,3290.7,0.04562609]
[1732312078930,1.05957103,3291.5,3290.7,0.04562609]
[1732312079275,0.01,3291.8,3290.8,0.04562609]
[1732312079276,0.7762,3291.3,3290.8,0.04562609]
[1732312079429,0.28337103,3291.2,3290.8,0.04562609]
[1732312079627,0.28337103,3291.1,3290.0,0.833]
[1732312079832,0.28337103,3291.0,3290.0,1.07491258]
[1732312080031,0.28337103,3290.9,3290.1,0.04567691]
[1732312080348,0.28337103,3290.8,3290.2,0.55]
[1732312080532,0.28337103,3290.7,3290.3,0.79]
[1732312080875,0.7762,3291.3,3290.4,2.18747795]
[1732312081083,0.7539,3292.2,3290.5,0.03038617]
[1732312081084,0.28335299,3291.2,3290.5,0.03038617]
[1732312081233,0.28334286,3291.2,3290.4,2.21786382]
[1732312081439,0.28334286,3291.2,3290.9,0.55]
[1732312081440,0.28334257,3291.1,3290.9,0.55]
[1732312081775,0.28334257,3291.0,3290.9,0.55]
[1732312081990,0.28334257,3291.1,3290.9,0.55]
[1732312082274,0.28334286,3291.2,3290.8,0.8134]
[1732312082275,0.28334257,3291.0,3290.8,0.8134]
[1732312082437,0.28334257,3291.1,3290.5,1.3634]
[1732312082639,0.28334286,3291.2,3290.5,1.3634]
[1732312082836,0.28330896,3291.1,3290.5,1.65891645]
[1732312083075,0.28330896,3291.1,3290.7,0.55]
[1732312083274,0.28334286,3291.2,3290.9,0.8134]
[1732312083634,0.28334286,3291.2,3291.0,0.62604435]
[1732312083834,0.28334286,3291.2,3291.1,1.3269]
[1732312084289,0.28334286,3291.2,3291.1,1.37250386]
[1732312084433,0.28334286,3291.2,3291.1,1.6637271]
[1732312085683,0.28334286,3291.2,3291.1,1.37250386]
[1732312085882,0.8124,3292.6,3291.4,0.55]
[1732312086175,0.28311748,3292.5,3291.4,1.3811]
[1732312086384,0.8124,3292.6,3291.6,0.55]
[1732312086385,0.28311748,3292.4,3291.6,0.55]
[1732312086609,0.8124,3292.6,3291.8,0.55]
[1732312086814,0.28299101,3292.5,3291.8,0.55]
[1732312086997,0.28299101,3292.5,3292.0,0.55]
[1732312087198,0.28299101,3292.8,3292.0,0.55]
[1732312087401,0.8124,3292.9,3292.1,0.04399959]
[1732312087402,0.28296069,3292.7,3292.1,0.04399959]
[1732312087587,0.28296069,3292.6,3292.1,0.04399959]
[1732312087786,0.8124,3292.9,3292.1,0.04399959]
[1732312087988,0.2828385,3292.8,3291.8,0.55]
[1732312088213,0.2828385,3292.7,3291.9,0.0743738]
[1732312088376,0.2828385,3292.8,3291.9,0.0743738]
[1732312088577,0.2828385,3292.6,3291.9,0.0743738]
[1732312088810,0.97488,3292.9,3291.9,0.0743738]
[1732312089129,0.28269701,3292.8,3292.2,0.55]
[1732312089274,0.8264,3293.2,3292.2,0.55]
[1732312089275,0.8311,3293.4,3292.3,0.03036977]
[1732312089477,0.8311,3293.4,3292.5,0.55]
[1732312089478,0.28266869,3293.3,3292.5,0.55]
[1732312089878,0.8264,3293.5,3292.7,0.55]
[1732312090078,0.28245169,3293.4,3292.7,0.55]
[1732312090399,0.28245169,3293.4,3292.8,0.04371223]
[1732312090711,1.5997,3293.8,3292.8,0.07407819]
[1732312091014,0.45059875,3293.7,3292.8,0.04371223]
[1732312091220,0.28221132,3293.6,3292.8,0.04371223]
[1732312091775,0.28221132,3293.6,3292.5,0.55]
[1732312091982,0.28221132,3293.6,3292.6,0.04364877]
[1732312092682,0.2818975,3293.5,3292.6,0.04364877]
[1732312093019,0.17680874,3293.6,3292.6,0.04364877]
[1732312094738,1.5997,3293.8,3292.9,0.55]
[1732312094739,0.8207,3293.8,3292.9,0.55]
[1732312095093,0.8207,3293.8,3293.1,0.55]
[1732312095833,0.8207,3293.8,3292.8,0.7877]
[1732312095834,0.8207,3293.8,3293.2,0.04362497]
[1732312096341,0.8207,3293.8,3292.8,0.7877]
[1732312096509,0.8207,3293.8,3293.3,0.04362497]
[1732312096706,0.8207,3293.8,3292.8,0.7877]
[1732312097252,0.8207,3293.8,3292.9,0.0436107]
[1732312101341,0.28123235,3293.7,3292.9,0.0436107]
[1732312101637,1.11043235,3293.6,3293.0,0.04344414]
[1732312101798,0.28123235,3293.5,3293.0,0.04344414]
[1732312101991,0.28123235,3293.5,3292.5,0.8324]
[1732312102199,0.28123235,3293.5,3292.6,0.04344414]
[1732312102814,0.8292,3293.6,3292.6,0.04344414]
[1732312103213,0.88577429,3293.9,3292.7,0.768]
[1732312103423,0.88577429,3293.9,3292.7,2.29447204]
[1732312103424,0.28129131,3293.8,3292.7,2.29447204]
[1732312103601,0.28129131,3293.8,3292.8,0.55]
[1732312103947,0.28129131,3293.8,3292.9,0.04344414]
[1732312104241,0.28129131,3293.8,3293.1,0.768]
[1732312104600,0.08417429,3293.9,3293.1,0.768]
[1732312104853,0.08417429,3293.9,3293.2,0.04344414]
[1732312106604,0.08417429,3293.9,3292.7,0.23682838]
[1732312106605,0.08417429,3293.9,3293.5,0.55]
[1732312106816,0.08417429,3293.9,3293.7,0.55]
[1732312107548,0.08417429,3293.9,3293.8,0.04344414]
[1732312107901,0.08417429,3293.9,3293.6,0.7681]
[1732312108106,0.08417429,3293.9,3293.8,0.04201048]
[1732312108342,0.08417429,3293.9,3293.7,0.04192643]
[1732312108520,0.08417429,3293.9,3293.6,0.7681]
[1732312108720,0.08417429,3293.9,3293.8,0.04192643]
[1732312109318,0.08417429,3293.9,3293.6,0.7681]
[1732312109504,0.08417429,3293.9,3293.8,0.04192643]
[1732312109711,0.08417429,3293.9,3293.6,0.7681]
[1732312109712,0.08417429,3293.9,3293.7,0.55]
[1732312109908,0.08417429,3293.9,3293.8,0.04192643]
[1732312110437,0.08417429,3293.9,3293.8,0.59193436]
[1732312110611,0.08417429,3293.9,3293.8,1.3308]
[1732312110954,0.08417429,3293.9,3293.8,1.65892088]
[1732312111157,0.08417429,3293.9,3293.8,1.37273277]
[1732312111513,0.08417429,3293.9,3293.8,0.82273277]
[1732312113589,0.08417429,3293.9,3293.8,0.04193277]
[1732312113950,0.08417429,3293.9,3293.5,0.8074]
[1732312114199,0.08417429,3293.9,3293.8,0.04181541]
[1732312114691,0.08417429,3293.9,3293.5,0.8074]
[1732312114849,0.08417429,3293.9,3293.8,0.04181541]
[1732312115185,0.08417429,3293.9,3293.5,0.8074]
[1732312115401,0.08417429,3293.9,3293.8,0.04181541]
[1732312115892,0.08417429,3293.9,3293.5,0.8074]
[1732312116045,0.08417429,3293.9,3293.8,0.04181541]
[1732312116253,0.36653868,3293.9,3293.5,0.8074]
[1732312116575,0.08417429,3293.9,3293.8,0.04185663]
[1732312116775,0.08417429,3293.9,3293.5,0.8074]
[1732312117298,0.08417429,3293.9,3293.6,0.04185663]
[1732312120393,0.08417429,3293.9,3293.7,0.55]
[1732312120696,0.08417429,3293.9,3293.8,0.04183602]
[1732312120905,0.08417429,3293.9,3293.8,1.39773602]
[1732312121069,0.08417429,3293.9,3293.8,1.3559]
[1732312121263,0.08417429,3293.9,3293.8,1.39773602]
[1732312121993,0.08417429,3293.9,3293.8,2.92002692]
[1732312122196,0.08417429,3293.9,3293.8,3.21202961]
[1732312128983,0.08417429,3293.9,3293.8,1.68973871]
[1732312129200,0.08417429,3293.9,3293.8,2.92002692]
[1732312129397,0.08417429,3293.9,3293.8,2.95037698]
[1732312131848,0.08417429,3293.9,3293.8,3.39978447]
[1732312137016,0.08417429,3293.9,3293.8,0.87808548]
[1732312137217,0.08417429,3293.9,3293.8,0.84773602]
[1732312138317,0.08417429,3293.9,3293.8,1.39773602]
[1732312138941,0.08417429,3293.9,3293.8,2.29002692]
[1732312139157,0.08417429,3293.9,3293.8,2.11017864]
[1732312139452,0.08417429,3293.9,3293.8,3.01246954]
[1732312140539,0.08417429,3293.9,3293.8,2.56306205]
[1732312144356,0.08417429,3293.9,3293.8,2.57306205]
[1732312146869,0.08417429,3293.9,3293.8,2.56306205]
[1732312147070,0.08417429,3293.9,3293.8,1.98270934]
[1732312147273,0.08417429,3293.9,3293.8,2.01305733]
[1732312148364,0.08417429,3293.9,3293.8,2.56305733]
[1732312150096,0.08417429,3293.9,3293.8,2.53270934]
[1732312150268,0.08417429,3293.9,3293.8,1.98270934]
[1732312151302,0.08417429,3293.9,3293.8,2.0130611]
[1732312151662,0.08417429,3293.9,3293.8,2.5630611]
[1732312152916,0.08417429,3293.9,3293.8,2.0130611]
[1732312155235,0.08417429,3293.9,3293.8,1.8271611]
[1732312155432,0.08417429,3293.9,3293.8,1.79680934]
[1732312155735,0.08417429,3293.9,3293.8,2.34680934]
[1732312157830,0.08417429,3293.9,3293.8,2.7881615]
[1732312161328,0.08417429,3293.9,3293.8,2.75780934]
[1732312162555,0.08417429,3293.9,3293.8,1.16412692]
[1732312162705,0.08417429,3293.9,3293.8,0.04183602]
[1732312162905,0.08417429,3293.9,3293.6,0.06500925]
[1732312163103,0.08417429,3293.9,3293.8,0.03747297]
[1732312163315,0.08417429,3293.9,3293.7,1.32680141]
[1732312163809,0.08417429,3293.9,3293.8,1.35976387]
[1732312164237,0.83677429,3293.9,3293.8,1.35976387]
[1732312164553,0.08417429,3293.9,3293.8,1.35976387]
[1732312164929,0.08417429,3293.9,3293.8,1.90976387]
[1732312165137,0.08417429,3293.9,3293.8,1.57820228]
[1732312165476,0.08417429,3293.9,3293.8,3.56965242]
[1732312165838,0.08417429,3293.9,3293.8,3.10049318]
[1732312166555,0.08417429,3293.9,3293.8,2.80049318]
[1732312167120,0.08417429,3293.9,3293.8,3.26965242]
[1732312167476,0.08417429,3293.9,3293.8,2.04736152]
[1732312167616,0.7631,3296.8,3294.6,0.8237]
[1732312167617,0.8075,3295.8,3294.6,0.8237]
[1732312167973,0.8075,3295.8,3294.9,0.55]
[1732312168110,0.8075,3295.8,3295.2,0.55]
[1732312168310,0.8075,3295.8,3295.0,0.49949874]
[1732312168311,0.8075,3295.5,3295.0,0.03738901]
[1732312168550,0.8075,3295.5,3294.6,0.58034361]
[1732312168754,0.8075,3295.5,3295.2,0.55]
[1732312169129,0.8075,3295.7,3295.3,0.03730664]
[1732312169337,0.8075,3295.7,3295.2,0.5803397]
[1732312169537,0.8075,3295.7,3295.4,0.03730664]
[1732312169846,0.8075,3295.7,3295.5,0.03603465]
[1732312170161,0.8075,3295.7,3295.1,0.58033925]
[1732312170321,0.8075,3295.7,3295.5,0.03603465]
[1732312170527,0.8075,3295.7,3295.1,0.58033925]
[1732312170765,0.8075,3295.7,3295.5,0.03603465]
[1732312170965,0.8075,3295.7,3295.1,0.58033925]
[1732312171269,0.005,3296.9,3295.1,0.58033925]
[1732312171270,0.7693,3295.9,3295.1,0.58033925]
[1732312171568,0.7693,3295.9,3295.3,0.55]
[1732312171990,0.7693,3295.9,3295.2,0.03033921]
[1732312172129,0.7693,3295.9,3295.4,0.03603465]
[1732312172326,0.7693,3295.9,3295.2,0.03033921]
[1732312173000,0.7693,3295.9,3295.3,0.03603465]
[1732312173265,0.7693,3295.9,3295.1,0.5803391]
[1732312173266,0.7693,3295.9,3295.1,0.5803397]
[1732312173439,0.7693,3295.9,3295.4,0.03602356]
[1732312173639,0.7693,3295.9,3295.1,0.0303397]
[1732312173975,0.7524,3295.5,3295.2,0.06423579]
[1732312174351,0.7524,3295.5,3295.2,0.02821223]
[1732312177186,0.8175,3297.0,3295.2,0.02821223]
[1732312177187,0.05528876,3299.4,3298.7,0.01]
[1732312177364,17.78840158,3303.6,3303.5,0.02]
[1732312177365,15.73261885,3303.6,3303.5,0.02]
[1732312177680,1.51236156,3306.0,3305.9,0.02]
[1732312177849,0.14657064,3308.8,3307.7,0.01]
[1732312178282,0.14657064,3308.8,3307.8,0.58248036]
[1732312178283,0.7909,3308.7,3307.8,0.58248036]
[1732312178517,2.91152747,3308.7,3307.9,0.03022689]
[1732312178675,1.14121434,3308.6,3305.4,0.56]
[1732312178841,2.90840161,3308.6,3305.5,0.03024644]
[1732312179186,0.7909,3308.4,3305.8,0.01]
[1732312179355,1.28229516,3308.3,3305.7,0.03023611]
[1732312179680,0.7909,3307.3,3305.8,4.41760838]
[1732312179880,0.03022696,3308.2,3305.9,0.0402497]
[1732312180085,0.2460367,3308.6,3306.0,2.53254279]
[1732312180285,0.2460367,3308.6,3306.1,1.04327306]
[1732312180538,0.2452367,3308.6,3306.8,1.25687422]
[1732312180691,0.2452367,3308.6,3306.2,7.67435889]
[1732312180692,0.01,3308.0,3306.2,7.67435889]
[1732312180893,0.63553823,3308.6,3305.3,3.14307098]
[1732312180894,0.0092,3307.2,3305.3,3.14307098]
[1732312181044,0.32580611,3307.9,3305.4,4.53732493]
[1732312181253,1.4418377,3308.6,3305.6,3.13307098]
[1732312181254,0.39409358,3308.5,3305.6,3.13307098]
[1732312181484,0.39409358,3308.5,3305.5,7.05958387]
[1732312181485,0.18359313,3308.4,3305.8,3.13307098]
[1732312181792,0.39409358,3308.3,3305.5,0.01]
[1732312181946,0.55,3308.2,3305.5,0.01]
[1732312182145,0.39409358,3308.2,3305.3,0.01]
[1732312182369,0.55,3308.1,3304.1,0.01]
[1732312182558,0.55,3307.9,3304.1,0.01]
[1732312182784,0.55,3307.9,3303.7,0.0302604]
[1732312182785,0.55,3307.9,3303.7,0.01]
[1732312183000,0.55,3307.9,3302.3,6.89306159]
[1732312183001,0.55,3307.7,3303.2,0.01]
[1732312183157,0.55,3307.7,3303.3,0.01]
[1732312183158,0.55,3307.5,3303.3,0.01]
[1732312183346,0.7712,3307.4,3303.8,0.01]
[1732312183545,0.55,3307.1,3303.5,0.02]
[1732312183897,0.55,3306.5,3303.8,0.01]
[1732312184668,0.55,3306.3,3303.3,0.02]
[1732312184908,0.55,3306.1,3303.3,0.01]
[1732312185123,0.8123,3306.0,3303.1,0.01]
[1732312185270,0.55,3305.7,3302.9,0.01]
[1732312185466,0.55,3305.5,3302.7,0.01]
[1732312185695,0.55,3305.5,3301.5,0.0302716]
[1732312185696,0.8123,3305.2,3302.0,0.02]
[1732312185907,0.55,3305.1,3302.0,0.02]
[1732312186116,0.55,3305.1,3302.0,0.01]
[1732312186415,0.55,3304.9,3302.0,0.02]
[1732312186920,0.55,3304.9,3302.2,0.01]
[1732312188693,0.55,3304.9,3302.6,0.01]
[1732312188896,0.55,3304.9,3302.3,0.01]
[1732312189095,0.55,3304.9,3302.0,0.01]
[1732312189295,0.55,3304.9,3302.5,0.01]
[1732312190801,14.35,3307.9,3302.5,0.01]
[1732312190989,1.435,3307.8,3302.5,0.01]
[1732312191584,1.435,3307.8,3302.4,0.01]
[1732312191810,3.18,3307.7,3302.4,0.01]
[1732312192012,3.18,3307.5,3302.4,0.01]
[1732312192845,3.18,3307.3,3302.4,0.01]
[1732312193071,3.18,3307.1,3302.4,0.02]
[1732312193201,3.18,3307.1,3302.8,0.01]
[1732312193202,0.373,3307.0,3302.8,0.01]
[1732312193604,0.373,3307.0,3303.0,0.01]
[1732312193800,0.7588,3306.9,3303.0,0.01]
[1732312194004,0.7588,3306.9,3302.6,0.04027232]
[1732312194005,0.7588,3306.9,3303.2,0.01]
[1732312194540,0.7588,3306.9,3303.4,0.02]
[1732312194699,0.7588,3306.9,3303.7,0.01]
[1732312195803,0.8179,3306.6,3303.2,0.7645]
[1732312196204,0.55,3306.5,3303.4,0.01]
[1732312196446,0.55,3306.5,3303.2,0.7645]
[1732312197443,0.55,3306.5,3303.4,0.01]
[1732312198620,0.55,3306.5,3303.4,0.05026573]
[1732312198820,0.8179,3306.6,3303.6,0.01]
[1732312199053,0.8179,3306.6,3303.9,0.01]
[1732312199251,0.373,3307.0,3304.6,0.8258]
[1732312199981,0.373,3307.0,3303.6,0.0302567]
[1732312199982,0.77,3306.9,3303.6,0.8258]
[1732312200986,0.55,3306.8,3303.6,0.8258]
[1732312201579,0.77,3306.9,3304.1,0.02]
[1732312201788,0.77,3306.9,3303.8,0.01]
[1732312202236,0.77,3306.9,3304.1,0.01]
[1732312203891,0.55,3306.8,3304.1,0.01]
[1732312204180,0.77,3306.9,3304.7,0.7563]
[1732312204380,0.77,3306.9,3304.8,0.01]
[1732312204894,0.4615,3307.6,3305.1,0.01]
[1732312204895,1.2389,3307.6,3305.1,0.01]
[1732312206075,1.2389,3307.6,3304.7,0.7563]
[1732312206277,3.18,3307.5,3304.7,0.7563]
[1732312206486,0.44189,3307.4,3304.7,0.7563]
[1732312206697,0.7774,3307.6,3305.4,0.01]
[1732312206897,0.7959,3308.5,3305.5,0.794]
[1732312207096,0.2002501,3308.4,3305.6,0.03025012]
[1732312207257,0.2002501,3308.4,3305.5,0.794]
[1732312208656,0.55,3308.3,3305.5,0.794]
[1732312209061,3.73,3308.3,3305.5,0.794]
[1732312209369,0.2002501,3308.4,3305.5,0.794]
[1732312209370,0.55,3308.1,3305.5,0.794]
[1732312211601,0.5,3308.1,3305.5,0.794]
[1732312212268,0.4,3308.1,3305.5,0.794]
[1732312212469,0.8033,3308.0,3305.5,0.794]
[1732312213480,0.39833,3307.9,3305.5,0.794]
[1732312214166,3.57833,3307.9,3305.5,0.794]
[1732312214362,0.55,3307.8,3305.5,0.794]
[1732312215867,3.73,3307.8,3305.5,0.794]
[1732312216071,3.73,3307.8,3304.1,0.7789]
[1732312216296,3.73,3307.6,3304.2,0.01]
[1732312216613,3.73,3307.6,3304.2,0.04026076]
[1732312216614,0.55,3307.6,3304.2,0.04026076]
[1732312216769,3.73,3307.4,3304.3,0.7816]
[1732312217192,3.73,3307.4,3304.4,0.03025928]
[1732312217814,0.4142833,3307.5,3304.8,0.8711]
[1732312218111,0.4142833,3307.5,3304.9,0.0302538]
[1732312218374,0.4142833,3307.5,3305.0,0.8811]
[1732312219348,0.55,3307.4,3305.0,0.8811]
[1732312219923,0.55,3307.4,3305.0,0.8711]
[1732312220156,0.55,3307.4,3305.0,0.8811]
[1732312220327,0.55,3307.4,3305.0,0.8711]
[1732312221152,0.41442833,3307.3,3305.0,0.8711]
[1732312221355,0.55,3307.2,3305.0,0.8711]
[1732312223374,0.55,3307.2,3305.1,2.56383593]
[1732312223561,0.55,3307.2,3305.2,1.02552986]
[1732312223763,0.55,3307.2,3305.3,1.0254447]
[1732312223959,0.55,3307.2,3305.4,1.0253257]
[1732312224137,0.55,3307.2,3305.2,1.20488396]
[1732312224367,0.55,3307.2,3305.3,2.5635207]
[1732312224573,0.55,3307.2,3305.4,1.02540828]
[1732312224747,0.55,3307.2,3305.0,2.07598396]
[1732312224941,0.55,3307.2,3305.1,2.56351998]
[1732312225184,0.55,3307.2,3305.2,2.56351998]
[1732312225479,0.55,3307.2,3305.0,2.07598396]
[1732312225645,0.55,3307.2,3305.1,2.56373141]
[1732312225842,0.55,3307.2,3305.2,1.02549256]
[1732312226082,0.55,3307.2,3305.0,2.07598396]
[1732312226267,0.55,3307.2,3305.1,2.56389548]
[1732312226453,0.55,3307.2,3305.2,2.56389548]
[1732312226655,3.18,3307.1,3305.3,1.02555819]
[1732312226872,0.55,3306.9,3305.1,1.20488396]
[1732312227074,0.8348,3306.8,3305.0,0.8711]
[1732312227271,0.55,3306.7,3305.0,0.8711]
[1732312228749,0.55,3306.9,3305.0,0.8711]
[1732312230060,0.55,3306.7,3305.0,0.8711]
[1732312230291,0.4093,3306.8,3305.0,0.8711]
[1732312231695,0.55,3306.7,3305.0,0.8711]
[1732312232310,0.373,3307.0,3305.0,0.8711]
[1732312232485,0.373,3307.0,3305.1,0.05287598]
[1732312233578,0.55,3306.9,3305.1,0.05287598]
[1732312234787,0.55,3306.9,3305.0,0.8211]
[1732312235190,3.72,3306.9,3305.0,0.8211]
[1732312235374,0.55,3306.5,3304.0,0.8192]
[1732312235906,0.55,3306.5,3304.1,0.04976151]
[1732312236707,4.0417,3306.6,3304.1,0.04976151]
[1732312236708,0.55,3306.1,3304.1,0.04976151]
[1732312237049,0.55,3306.3,3304.0,0.8192]
[1732312237643,3.72,3306.3,3304.0,0.8192]
[1732312237811,3.72,3305.9,3304.0,0.8192]
[1732312238395,3.72,3305.9,3302.8,0.8944]
[1732312238899,0.417917,3306.2,3302.8,0.8944]
[1732312238900,0.848,3305.2,3302.8,0.8944]
[1732312239108,3.5718,3305.1,3302.8,0.8944]
[1732312239348,0.55,3305.0,3302.8,0.8944]
[1732312239840,3.72,3305.0,3302.8,0.8944]
[1732312241701,0.55,3305.0,3302.8,0.8944]
[1732312242298,0.848,3305.2,3302.9,0.05012401]
[1732312243010,0.848,3305.2,3302.8,0.8944]
[1732312243608,0.848,3305.2,3303.0,0.8879]
[1732312244401,0.848,3305.2,3303.1,0.05012401]
[1732312245025,0.55,3305.1,3303.1,0.05012401]
[1732312247729,0.55,3304.9,3303.0,0.8879]
[1732312250153,0.55,3304.7,3303.0,0.8879]
[1732312251152,3.72,3304.7,3303.0,0.8879]
[1732312251312,3.72,3304.7,3301.2,0.01]
[1732312251313,0.55,3304.5,3302.5,0.8217]
[1732312251732,3.72,3304.3,3302.5,0.8217]
[1732312251938,3.17,3304.3,3302.5,0.8217]
[1732312252146,0.55,3304.1,3302.5,0.8217]
[1732312253014,0.8607,3304.8,3302.5,0.8217]
[1732312253264,0.8607,3304.8,3302.6,0.0454693]
[1732312253947,0.8607,3304.8,3302.5,0.8217]
[1732312254327,0.8607,3304.8,3302.6,0.04554185]
[1732312254533,0.8607,3304.8,3302.7,0.8463]
[1732312255065,0.8607,3304.8,3302.8,0.04554185]
[1732312255558,0.8642,3305.3,3302.9,0.8442]
[1732312256060,0.40342,3305.2,3303.0,0.04549453]
[1732312256854,0.55,3305.1,3303.0,0.04549453]
[1732312258630,0.40342,3305.2,3303.1,0.8328]
[1732312258944,0.15731539,3305.5,3303.1,0.8328]
[1732312259348,0.8514,3306.3,3303.1,0.8428]
[1732312259555,0.15728539,3306.1,3303.3,0.8961]
[1732312259762,0.15728539,3306.1,3303.4,0.043926]
[1732312260068,0.15728539,3306.1,3303.5,0.8961]
[1732312260467,0.57515393,3306.1,3303.5,0.8961]
[1732312260630,0.31483825,3306.5,3303.7,0.8585]
[1732312260830,0.31483825,3306.5,3303.8,0.8685]
[1732312261030,1.02527049,3306.8,3303.9,0.88876596]
[1732312261256,0.41952705,3306.6,3304.1,0.8585]
[1732312261930,0.41952705,3306.6,3304.3,0.8222]
[1732312262783,0.55,3306.5,3304.3,0.8222]
[1732312265686,0.41952705,3306.6,3304.3,0.8222]
[1732312265997,0.15727049,3306.8,3304.4,0.04350035]
[1732312266194,0.15727049,3306.8,3304.5,0.8765]
[1732312266404,2.8528,3307.1,3304.5,0.8765]
[1732312266566,2.8528,3307.1,3304.6,0.04350035]
[1732312266567,0.28528,3307.0,3304.6,0.04350035]
[1732312266896,0.28528,3307.0,3304.7,0.8737]
[1732312267070,0.55,3306.9,3304.7,0.8737]
[1732312267589,0.55,3306.9,3304.8,0.04350035]
[1732312267754,0.55,3306.9,3304.7,0.8737]
[1732312267959,0.55,3306.9,3304.8,0.04206484]
[1732312268158,0.55,3306.9,3304.7,0.8737]
[1732312268594,3.5342,3306.9,3304.7,0.8737]
[1732312268794,0.55,3306.7,3304.7,0.8737]
[1732312271167,0.55,3306.5,3304.7,0.8737]
[1732312271572,3.72,3306.5,3304.7,0.8737]
[1732312271896,0.01,3304.9,3301.2,0.00644458]
[1732312272097,0.02,3304.9,3302.6,0.38821343]
[1732312272311,0.01,3304.7,3302.7,0.2897235]
[1732312272685,0.01,3304.9,3302.7,0.2897235]
[1732312272686,0.56,3304.5,3302.8,0.03934057]
[1732312273003,0.58026592,3304.4,3302.7,0.2897235]
[1732312273500,0.03026592,3304.4,3302.8,0.03943356]
[1732312274010,0.01,3304.3,3302.8,0.03943356]